bitfinex/quotes_ETHUSD_20251127
["timestamp","ask_amount","ask_price","bid_price","bid_amount"]
[1764257378304,0.3126561,3007.5,3007.4,3.81043134]
[1764257379806,0.3126561,3007.5,3007.4,4.31178265]
[1764257380010,0.002,3007.5,3007.4,4.31178265]
[1764257381541,0.002,3007.5,3007.4,0.51855131]
[1764257381837,0.40189128,3007.5,3007.1,3.32540454]
[1764257382033,0.31089128,3007.4,3007.2,0.03325352]
[1764257382213,0.31089128,3007.3,3007.2,0.03325352]
[1764257382612,0.31089128,3007.3,3007.2,0.50685352]
[1764257382809,0.31089128,3007.3,3007.2,1.00255352]
[1764257383240,0.31009128,3007.3,3007.2,1.00255352]
[1764257384740,0.31009128,3007.3,3007.2,4.327906]
[1764257385211,0.31009128,3007.3,3007.2,4.29465248]
[1764257385417,0.31009128,3007.3,3007.2,4.327906]
[1764257387247,0.31009128,3007.3,3007.2,4.29465248]
[1764257387942,0.31009128,3007.3,3007.2,0.4736]
[1764257388245,0.40279128,3007.3,3007.1,3.35866165]
[1764257388441,0.0927,3007.3,3007.1,3.32540702]
[1764257388646,0.0927,3007.3,3007.2,0.03325352]
[1764257389145,0.4548,3007.5,3007.2,3.358606]
[1764257389350,0.002,3007.5,3007.2,3.832206]
[1764257391046,0.002,3007.5,3007.2,3.79895248]
[1764257392519,0.002,3007.5,3007.2,7.12430496]
[1764257392719,0.002,3007.5,3007.3,0.03325241]
[1764257392947,0.002,3007.5,3007.2,4.29465248]
[1764257393747,0.002,3007.5,3007.2,4.327906]
[1764257395143,0.31174743,3007.4,3007.2,3.832206]
[1764257395449,0.31174743,3007.3,3007.2,3.832206]
[1764257395747,0.31174743,3007.3,3007.2,4.327906]
[1764257396544,0.31174743,3007.3,3007.2,3.832206]
[1764257396719,0.31174743,3007.3,3007.2,4.327906]
[1764257401754,0.002,3007.5,3007.3,1.13109811]
[1764257401954,0.002,3007.5,3007.4,0.81785131]
[1764257402251,0.002,3007.5,3007.4,3.09170603]
[1764257402445,0.002,3007.5,3007.4,1.4467051]
[1764257403241,0.002,3007.5,3007.4,3.22436244]
[1764257403628,0.002,3007.5,3007.4,6.54949378]
[1764257406761,0.0012,3007.5,3007.4,6.54949378]
[1764257407327,0.0012,3007.5,3007.4,4.77183644]
[1764257409957,0.0012,3007.5,3007.4,6.95499778]
[1764257410158,0.002,3007.8,3007.4,6.95499778]
[1764257410159,0.002,3007.8,3007.7,0.505504]
[1764257410338,0.002,3007.8,3007.7,3.59686818]
[1764257410544,0.002,3007.8,3007.7,4.80786229]
[1764257410938,0.002,3007.8,3007.7,6.89358625]
[1764257411143,0.002,3007.8,3007.7,6.86033826]
[1764257411343,0.002,3007.8,3007.7,5.08544165]
[1764257411547,0.002,3007.8,3007.7,5.11868964]
[1764257411964,0.002,3007.8,3007.7,8.44348932]
[1764257412130,0.002,3007.8,3007.7,8.41024133]
[1764257413459,0.002,3007.8,3007.7,10.18513794]
[1764257414261,0.002,3007.8,3007.7,8.41024133]
[1764257415752,0.002,3007.8,3007.7,5.72032514]
[1764257415941,0.002,3007.8,3007.7,8.13698532]
[1764257416142,0.002,3007.8,3007.7,8.20373733]
[1764257417467,0.053,3007.8,3007.7,4.57222114]
[1764257417769,0.0595,3007.8,3007.7,0.03324799]
[1764257417940,0.0595,3007.8,3007.7,3.35804767]
[1764257418143,0.5536,3007.8,3007.7,0.03324799]
[1764257418341,0.86405711,3007.8,3007.4,3.53713049]
[1764257418637,0.0049,3007.5,3007.4,0.001]
[1764257419177,0.0049,3007.5,3007.4,3.32613134]
[1764257420178,0.0049,3007.5,3007.4,0.001]
[1764257420355,0.5034,3007.5,3007.4,0.001]
[1764257421269,0.0049,3007.5,3007.4,0.001]
[1764257421471,0.002,3007.8,3007.4,0.001]
[1764257421687,0.31051989,3007.7,3007.4,0.001]
[1764257421887,0.0575,3007.5,3007.4,0.001]
[1764257422268,0.0575,3007.5,3007.4,0.03425131]
[1764257422763,0.0575,3007.5,3007.4,0.001]
[1764257423461,0.4941,3007.7,3007.4,0.001]
[1764257423679,0.0575,3007.5,3007.4,0.001]
[1764257424972,0.0619,3007.5,3007.4,0.03425131]
[1764257425172,0.0619,3007.5,3007.4,0.001]
[1764257426097,0.4941,3007.7,3007.4,0.001]
[1764257426295,0.0619,3007.5,3007.4,0.001]
[1764257426499,0.5005,3007.8,3007.4,0.001]
[1764257426699,0.31064688,3007.7,3007.4,0.001]
[1764257426900,0.31064688,3007.6,3007.4,0.03425131]
[1764257427068,0.5005,3007.8,3007.4,0.03425131]
[1764257427397,0.5005,3007.8,3007.4,0.53475131]
[1764257427398,0.31065307,3007.7,3007.4,0.53475131]
[1764257427598,0.5005,3007.8,3007.4,0.53475131]
[1764257427792,0.31067241,3007.7,3007.4,0.53475131]
[1764257428098,0.002,3007.8,3007.4,0.53475131]
[1764257428306,0.31068421,3007.7,3007.4,0.5015]
[1764257428505,0.5005,3007.8,3007.4,0.5015]
[1764257428802,0.31071094,3007.7,3007.5,3.8255081]
[1764257428970,0.5005,3007.8,3007.5,3.8255081]
[1764257429171,0.0575,3007.6,3007.5,3.8255081]
[1764257429474,0.0575,3007.6,3007.5,0.5005]
[1764257429671,0.86234606,3007.6,3007.4,3.32608738]
[1764257429971,0.0049,3007.5,3007.4,0.5015]
[1764257430182,0.0049,3007.5,3007.4,0.001]
[1764257430183,0.81414993,3007.5,3007.4,0.001]
[1764257430403,0.81334993,3007.5,3007.4,0.001]
[1764257432472,4.13837071,3007.5,3007.4,0.001]
[1764257433304,3.82762078,3007.5,3007.4,0.001]
[1764257433509,7.45378368,3007.5,3007.4,0.001]
[1764257433706,0.72559411,3007.4,3007.1,0.001]
[1764257433912,0.0526,3007.2,3007.1,0.001]
[1764257434076,0.3632526,3007.2,3007.1,0.001]
[1764257434275,0.8613526,3007.2,3007.1,0.001]
[1764257435777,4.18670508,3007.2,3007.1,0.001]
[1764257435984,0.3632526,3007.2,3007.1,0.001]
[1764257438221,0.8613526,3007.2,3007.1,0.001]
[1764257440380,4.18670508,3007.2,3007.1,0.001]
[1764257441013,4.39770508,3007.2,3007.1,0.001]
[1764257441216,4.49770508,3007.2,3007.1,0.001]
[1764257441415,5.22329919,3007.2,3007.1,0.001]
[1764257441716,5.35651995,3007.2,3007.1,0.001]
[1764257443419,5.22329919,3007.2,3007.1,0.001]
[1764257444502,5.25496835,3007.2,3007.1,0.001]
[1764257445997,5.15496835,3007.2,3007.1,0.001]
[1764257446497,5.25496835,3007.2,3007.1,0.001]
[1764257446893,4.94396835,3007.2,3007.1,0.001]
[1764257447318,5.15496835,3007.2,3007.1,0.001]
[1764257448104,5.25496835,3007.2,3007.1,0.001]
[1764257452995,5.25489922,3007.2,3007.1,0.001]
[1764257454205,5.25409922,3007.2,3007.1,0.001]
[1764257454613,7.84567704,3007.2,3007.1,0.001]
[1764257454811,7.81400788,3007.2,3007.1,0.001]
[1764257455541,1.03617758,3007.2,3007.1,0.4715]
[1764257455827,1.03617758,3007.2,3007.1,0.001]
[1764257455828,0.81835263,3007.2,3007.1,0.001]
[1764257456038,0.31058347,3007.2,3007.1,0.4715]
[1764257456333,0.31058347,3007.2,3007.1,1.1217]
[1764257457503,0.31058347,3007.2,3007.1,4.44716307]
[1764257458004,0.31058347,3007.2,3007.1,0.001]
[1764257458303,0.31058347,3007.2,3007.1,0.4715]
[1764257459101,4.18593595,3007.2,3007.1,0.001]
[1764257459303,7.63477704,3007.2,3007.1,0.001]
[1764257459530,7.60310788,3007.2,3007.1,0.001]
[1764257460238,5.22253006,3007.2,3007.1,0.001]
[1764257460431,5.25419922,3007.2,3007.1,0.001]
[1764257461020,5.15419922,3007.2,3007.1,0.001]
[1764257461226,5.25419922,3007.2,3007.1,0.001]
[1764257462031,5.04319922,3007.2,3007.1,0.001]
[1764257462236,5.25419922,3007.2,3007.1,0.001]
[1764257462917,1.21849411,3007.1,3006.8,0.001]
[1764257463120,9.983338,3006.9,3006.8,0.001]
[1764257463325,11.18877979,3006.9,3006.8,0.001]
[1764257463529,10.91529993,3006.9,3006.8,0.001]
[1764257464419,8.53472211,3006.9,3006.8,0.001]
[1764257464620,12.02203519,3006.9,3006.8,0.001]
[1764257467133,9.43045737,3006.9,3006.8,0.001]
[1764257467320,0.31058347,3006.9,3006.8,0.4715]
[1764257467522,0.31058347,3006.9,3006.8,0.9372]
[1764257468039,0.31058347,3006.9,3006.8,0.4715]
[1764257468441,0.31058347,3006.9,3006.8,0.9372]
[1764257469416,3.63626772,3006.9,3006.8,0.9372]
[1764257469650,3.70356772,3006.9,3006.8,0.001]
[1764257469856,3.63626772,3006.9,3006.8,0.001]
[1764257470150,3.63626772,3006.9,3006.8,0.9323]
[1764257470151,0.31058347,3006.9,3006.8,0.9323]
[1764257475639,0.31058347,3006.9,3006.8,0.4715]
[1764257477056,0.31068538,3006.9,3006.8,0.4715]
[1764257477353,3.72146963,3006.9,3006.8,0.001]
[1764257477556,3.87903879,3006.9,3006.8,0.001]
[1764257478059,3.96333879,3006.9,3006.8,0.001]
[1764257479064,7.74671072,3006.9,3006.8,0.001]
[1764257479361,5.22346374,3006.9,3006.8,0.001]
[1764257479525,5.2551329,3006.9,3006.8,0.001]
[1764257480261,5.1551329,3006.9,3006.8,0.001]
[1764257480434,5.2551329,3006.9,3006.8,0.001]
[1764257484526,0.002,3007.5,3006.8,0.9851]
[1764257484646,0.002,3007.5,3007.3,0.4953]
[1764257485264,3.32705005,3007.5,3007.3,0.4953]
[1764257485437,0.03366916,3007.4,3006.9,0.186]
[1764257485634,0.002,3007.4,3007.3,0.4953]
[1764257485870,0.002,3007.4,3007.0,0.4888]
[1764257486067,0.03166916,3007.3,3006.9,0.186]
[1764257486368,0.03166916,3007.3,3007.0,0.4888]
[1764257487972,0.03166916,3007.3,3006.8,0.001]
[1764257487973,2.60451798,3007.1,3006.8,0.001]
[1764257488282,0.13166916,3007.0,3006.8,0.001]
[1764257488432,0.03166916,3007.0,3006.8,0.001]
[1764257489936,2.91514526,3006.9,3006.8,0.001]
[1764257490153,0.49532728,3006.9,3006.8,0.001]
[1764257490543,0.39532728,3006.9,3006.8,0.001]
[1764257490745,0.31062728,3006.9,3006.8,0.001]
[1764257491863,3.72481153,3006.9,3006.8,0.001]
[1764257492084,6.24462951,3006.9,3006.8,0.001]
[1764257492289,3.75648069,3006.9,3006.8,0.001]
[1764257493194,0.34229644,3006.9,3006.8,0.4963]
[1764257493488,0.31062728,3006.9,3006.8,0.9851]
[1764257497061,0.31062728,3006.9,3006.8,0.4963]
[1764257497260,3.72101153,3006.9,3006.8,0.001]
[1764257497458,3.85268069,3006.9,3006.8,0.001]
[1764257499705,3.75268069,3006.9,3006.8,0.001]
[1764257500003,3.72101153,3006.9,3006.8,0.001]
[1764257500206,3.75268069,3006.9,3006.8,0.001]
[1764257501609,3.75468069,3006.9,3006.8,0.001]
[1764257501816,3.75388069,3006.9,3006.8,0.001]
[1764257502806,3.85388069,3006.9,3006.8,0.001]
[1764257503517,4.30798069,3006.9,3006.8,0.001]
[1764257503810,5.0335748,3006.9,3006.8,0.001]
[1764257504009,4.4794748,3006.9,3006.8,0.001]
[1764257507316,4.3947748,3006.9,3006.8,0.4991]
[1764257507519,4.3947748,3006.9,3006.8,0.9493]
[1764257507520,0.55449644,3006.9,3006.8,0.9493]
[1764257507809,3.84851153,3006.9,3006.8,0.9493]
[1764257508217,3.84851153,3006.9,3006.8,0.4991]
[1764257508416,3.88018069,3006.9,3006.8,0.4991]
[1764257509417,0.31182728,3006.9,3006.8,0.9493]
[1764257509582,0.31182728,3006.9,3006.8,4.27509486]
[1764257510918,0.002,3007.3,3006.9,0.405504]
[1764257511223,0.002,3007.3,3007.2,4.8879775]
[1764257511388,0.002,3007.3,3007.2,5.0989775]
[1764257511583,0.002,3007.3,3007.2,6.73491082]
[1764257511889,0.002,3007.3,3007.2,3.05582743]
[1764257512083,0.002,3007.3,3007.2,2.08109411]
[1764257512619,0.002,3007.3,3007.2,5.40644659]
[1764257512824,0.002,3007.3,3007.2,1.3555]
[1764257513009,0.002,3007.3,3007.2,4.68085248]
[1764257518708,0.002,3007.3,3007.2,4.714106]
[1764257520238,0.002,3007.3,3007.2,1.38875352]
[1764257520443,0.002,3007.3,3007.2,4.714106]
[1764257521516,0.002,3007.3,3007.2,4.263906]
[1764257521709,0.002,3007.3,3007.2,0.4981]
[1764257521914,0.4571,3007.3,3006.9,3.52187973]
[1764257522127,0.4571,3007.3,3006.9,3.97207973]
[1764257522331,0.002,3007.3,3006.9,3.52187973]
[1764257522554,0.002,3007.3,3007.0,0.4502]
[1764257522737,0.002,3007.3,3006.9,0.6464]
[1764257522916,0.002,3007.3,3006.8,3.53776516]
[1764257523245,0.1098,3006.9,3006.8,0.001]
[1764257523635,0.31038868,3006.9,3006.8,0.9493]
[1764257525463,0.30958868,3006.9,3006.8,0.9493]
[1764257525617,0.002,3007.3,3006.8,0.9493]
[1764257525823,0.002,3007.3,3006.9,0.03325684]
[1764257526065,0.002,3007.3,3006.9,0.48345684]
[1764257526849,0.002,3007.3,3007.2,0.4981]
[1764257527429,0.1118,3007.3,3006.9,0.48345684]
[1764257527638,0.1118,3007.3,3006.9,3.80912651]
[1764257527958,0.002,3007.3,3007.2,0.4981]
[1764257528247,0.002,3007.3,3007.2,0.9483]
[1764257531437,0.002,3007.3,3007.2,4.27365248]
[1764257532569,0.002,3007.3,3007.2,0.9483]
[1764257534470,0.002,3007.3,3007.2,0.4981]
[1764257535671,0.1126,3007.3,3007.0,3.8000144]
[1764257536462,0.1126,3007.3,3006.9,3.51078329]
[1764257536766,0.1126,3007.3,3006.9,3.35992754]
[1764257536972,0.1126,3007.3,3006.9,3.83442754]
[1764257537681,0.3110205,3007.2,3006.9,3.83442754]
[1764257537876,0.4499,3007.0,3006.9,0.001]
[1764257538082,0.7609205,3007.0,3006.9,0.001]
[1764257538377,0.3110205,3007.0,3006.9,0.9735]
[1764257538755,0.3110205,3007.0,3006.9,0.499]
[1764257538966,0.7921205,3007.0,3006.9,0.001]
[1764257539281,4.20079416,3007.0,3006.9,0.001]
[1764257540281,0.8752205,3007.0,3006.9,0.001]
[1764257540976,4.20079416,3007.0,3006.9,0.001]
[1764257541751,0.8752205,3007.0,3006.9,0.001]
[1764257542382,0.7921205,3007.0,3006.9,0.001]
[1764257543146,4.20079416,3007.0,3006.9,0.001]
[1764257544194,0.8752205,3007.0,3006.9,0.001]
[1764257547502,0.90688966,3007.0,3006.9,0.001]
[1764257548312,0.82378966,3007.0,3006.9,0.001]
[1764257549317,0.82298966,3007.0,3006.9,0.001]
[1764257550604,0.90608966,3007.0,3006.9,0.001]
[1764257551580,0.82298966,3007.0,3006.9,0.001]
[1764257553617,0.51276916,3007.0,3006.9,0.001]
[1764257554325,0.002,3007.3,3006.9,0.001]
[1764257554326,0.002,3007.3,3006.9,0.9735]
[1764257554615,0.002,3007.3,3007.2,0.498]
[1764257554988,0.002,3007.3,3007.2,0.9725]
[1764257556018,0.002,3007.3,3007.2,4.29785248]
[1764257556619,0.002,3007.3,3007.2,0.9725]
[1764257556827,0.002,3007.3,3007.2,4.29785248]
[1764257558428,0.002,3007.3,3007.2,0.9725]
[1764257558721,0.002,3007.3,3007.2,4.29785248]
[1764257559727,0.1126,3007.3,3007.1,3.32539975]
[1764257559919,0.0045,3007.2,3007.1,3.32539975]
[1764257560125,0.002,3007.3,3007.1,3.32539975]
[1764257560327,0.002,3007.3,3007.2,0.9353]
[1764257561226,0.31338085,3007.3,3007.2,0.4715]
[1764257561428,0.31338085,3007.3,3007.2,0.9353]
[1764257562463,0.31338085,3007.3,3007.2,4.26065248]
[1764257565156,0.31338085,3007.3,3007.2,4.293906]
[1764257566873,0.002,3007.3,3007.2,4.293906]
[1764257567024,0.31333042,3007.3,3007.2,4.293906]
[1764257567443,0.31333042,3007.3,3007.2,4.26065248]
[1764257567657,0.31333042,3007.3,3007.2,4.293906]
[1764257570764,0.86743042,3007.3,3006.9,3.32667221]
[1764257570983,0.31133042,3007.2,3006.9,3.32667221]
[1764257571172,0.31133042,3007.1,3006.9,3.32667221]
[1764257571375,0.0763,3007.3,3006.9,3.32667221]
[1764257571376,0.31133042,3007.0,3006.9,3.32667221]
[1764257572046,0.31133042,3007.0,3006.9,3.79817221]
[1764257572447,0.78713042,3007.0,3006.9,0.001]
[1764257572961,0.78633042,3007.0,3006.9,0.001]
[1764257573970,0.86463042,3007.0,3006.9,0.001]
[1764257574280,0.31053042,3007.0,3006.9,0.4725]
[1764257574473,0.31053042,3007.0,3006.9,0.001]
[1764257574918,0.78233042,3007.0,3006.9,0.001]
[1764257576718,6.70880743,3007.0,3006.9,0.001]
[1764257577223,0.99333042,3007.0,3006.9,0.001]
[1764257577790,0.78233042,3007.0,3006.9,0.001]
[1764257578013,0.31053042,3007.0,3006.9,0.001]
[1764257578529,0.39183042,3007.0,3006.9,0.001]
[1764257581312,0.86073042,3007.0,3006.9,0.001]
[1764257581636,4.18630408,3007.0,3006.9,0.001]
[1764257581818,6.80490743,3007.0,3006.9,0.001]
[1764257582619,9.45676837,3007.0,3006.9,0.001]
[1764257582807,6.93816502,3007.0,3006.9,0.001]
[1764257583332,7.66375913,3007.0,3006.9,0.001]
[1764257584621,7.66375913,3007.0,3006.7,0.001]
[1764257584622,0.1,3006.8,3006.7,0.001]
[1764257584797,0.1,3006.8,3006.5,0.001]
[1764257584798,0.405504,3006.7,3006.5,0.001]
[1764257584998,0.1,3006.4,3005.4,0.001]
[1764257585209,3.73038793,3006.4,3005.4,0.001]
[1764257585409,4.33647661,3006.4,3005.4,0.001]
[1764257586538,7.66271397,3006.4,3005.4,0.001]
[1764257587435,0.82559411,3006.3,3005.4,0.001]
[1764257587636,1.61618458,3006.3,3005.4,0.001]
[1764257588135,1.64785374,3006.3,3005.4,0.001]
[1764257588731,4.97420174,3006.3,3005.4,0.001]
[1764257588955,7.49280509,3006.3,3005.4,0.001]
[1764257589139,3.74970146,3006.2,3005.4,0.001]
[1764257589439,3.34419746,3005.6,3005.4,0.001]
[1764257589777,3.87368793,3005.6,3005.4,0.001]
[1764257589918,4.34648793,3005.6,3005.4,0.001]
[1764257590115,1.16990258,3005.6,3005.4,0.001]
[1764257590316,1.24758458,3005.6,3005.4,0.001]
[1764257590517,1.24758458,3005.6,3005.5,0.4612]
[1764257590911,4.57470728,3005.6,3005.5,0.4612]
[1764257591118,4.57470728,3005.6,3005.5,0.001]
[1764257591318,4.67250728,3005.6,3005.5,0.001]
[1764257591639,4.49461317,3005.6,3005.5,0.001]
[1764257592311,3.94691317,3005.6,3005.5,0.001]
[1764257593345,4.49461317,3005.6,3005.5,0.001]
[1764257594150,4.52628233,3005.6,3005.5,0.001]
[1764257594650,0.34265963,3005.6,3005.5,0.001]
[1764257594821,0.55365963,3005.6,3005.5,0.4612]
[1764257595021,3.88078233,3005.6,3005.5,0.4612]
[1764257595227,3.88078233,3005.6,3005.5,0.001]
[1764257595527,3.98208233,3005.6,3005.5,0.001]
[1764257596822,3.98128233,3005.6,3005.5,0.001]
[1764257598245,4.08128233,3005.6,3005.5,0.001]
[1764257599834,0.34185963,3005.6,3005.5,0.4612]
[1764257600041,0.52119047,3005.6,3005.5,0.4612]
[1764257600542,3.84831317,3005.6,3005.5,0.4612]
[1764257602829,3.63731317,3005.6,3005.5,0.4612]
[1764257603030,3.84831317,3005.6,3005.5,0.4612]
[1764257603534,3.63731317,3005.6,3005.5,0.4612]
[1764257603734,3.84831317,3005.6,3005.5,0.4612]
[1764257604326,3.94611317,3005.6,3005.5,0.001]
[1764257604633,4.04611317,3005.6,3005.5,0.001]
[1764257604952,3.94831317,3005.6,3005.5,0.001]
[1764257605353,3.97998233,3005.6,3005.5,0.001]
[1764257605552,0.31019047,3005.6,3005.5,0.9569]
[1764257605756,0.31019047,3005.6,3005.5,3.47550335]
[1764257605956,0.4957,3006.7,3005.6,0.72559411]
[1764257606256,0.002,3006.4,3005.6,1.43229411]
[1764257606457,0.002,3006.4,3005.7,0.4957]
[1764257606755,0.002,3006.4,3006.3,0.6575]
[1764257607254,0.0998,3006.4,3005.8,0.4957]
[1764257607426,0.03366916,3006.4,3005.8,0.4957]
[1764257607629,0.03366916,3006.4,3006.3,0.4602]
[1764257608728,0.34413714,3006.4,3006.3,0.4602]
[1764257609140,3.6703745,3006.4,3006.3,0.4602]
[1764257609458,7.54211186,3006.4,3005.5,3.32821446]
[1764257609667,0.1,3006.2,3005.6,0.4957]
[1764257609829,0.31046798,3006.1,3005.6,0.4957]
[1764257610153,0.31046798,3006.0,3005.6,0.4957]
[1764257610357,0.31046798,3005.9,3005.6,0.4957]
[1764257610563,0.31046798,3005.8,3005.7,2.51860335]
[1764257610931,0.31046798,3005.8,3005.7,2.97880335]
[1764257611126,0.31046798,3005.8,3005.7,6.30581536]
[1764257611430,0.31046798,3005.8,3005.7,7.52710947]
[1764257611971,0.31046798,3005.8,3005.7,5.00850612]
[1764257612540,0.31046798,3005.8,3005.7,4.28291201]
[1764257612952,0.40826798,3005.8,3005.5,0.001]
[1764257613150,0.31046798,3005.7,3005.5,0.001]
[1764257613350,0.31046798,3005.6,3005.5,0.001]
[1764257613554,0.31046798,3005.6,3005.5,0.4967]
[1764257613755,0.31046798,3005.6,3005.5,0.9569]
[1764257615063,0.31046798,3005.6,3005.5,0.4612]
[1764257615667,3.73889068,3005.6,3005.5,0.001]
[1764257617163,3.63759068,3005.6,3005.5,0.4612]
[1764257618247,3.63759068,3005.6,3005.5,0.001]
[1764257619260,3.83539068,3005.6,3005.5,0.001]
[1764257620459,3.83459068,3005.6,3005.5,0.001]
[1764257620642,4.46018479,3005.6,3005.5,0.001]
[1764257620973,5.00788479,3005.6,3005.5,0.001]
[1764257622549,4.56018479,3005.6,3005.5,0.001]
[1764257622966,4.56218479,3005.6,3005.5,0.001]
[1764257623755,5.00988479,3005.6,3005.5,0.001]
[1764257623960,4.28418597,3005.6,3005.5,0.001]
[1764257624265,4.73188597,3005.6,3005.5,0.001]
[1764257624567,4.28418597,3005.6,3005.5,0.001]
[1764257624773,4.73188597,3005.6,3005.5,0.001]
[1764257626670,4.94288597,3005.6,3005.5,0.001]
[1764257627778,4.29738597,3005.6,3005.5,0.4764]
[1764257628769,4.29738597,3005.6,3005.5,0.9344]
[1764257628977,4.26571681,3005.6,3005.5,0.9344]
[1764257629273,4.26571681,3005.6,3005.5,0.4764]
[1764257629478,4.29738597,3005.6,3005.5,0.4764]
[1764257629663,4.29738597,3005.6,3005.5,0.9344]
[1764257629664,0.213,3005.6,3005.5,0.9344]
[1764257629991,0.002,3005.6,3005.5,0.9344]
[1764257632589,0.31308853,3005.6,3005.5,0.9344]
[1764257634982,0.31308853,3005.6,3005.5,4.2616334]
[1764257635782,0.31308853,3005.6,3005.5,0.9344]
[1764257638784,0.31308853,3005.6,3005.5,4.2616334]
[1764257640370,0.31308853,3005.6,3005.5,0.96767233]
[1764257640776,0.31308853,3005.6,3005.5,4.29490573]
[1764257641293,0.31308853,3005.6,3005.5,7.40132544]
[1764257641448,0.002,3005.6,3005.5,7.36805311]
[1764257641655,0.002,3005.6,3005.5,4.6671374]
[1764257641881,0.31332104,3005.6,3005.5,0.9344]
[1764257642379,0.31332104,3005.6,3005.5,0.001]
[1764257642380,0.37282104,3005.6,3005.5,0.001]
[1764257642579,3.69994374,3005.6,3005.5,0.001]
[1764257643369,0.37282104,3005.6,3005.5,0.001]
[1764257643856,3.69994374,3005.6,3005.5,0.001]
[1764257644061,4.28634374,3005.6,3005.5,0.001]
[1764257644261,3.79994374,3005.6,3005.5,0.001]
[1764257644465,5.0508337,3005.6,3005.5,0.001]
[1764257644662,3.42767628,3005.1,3005.0,0.001]
[1764257644893,3.42767628,3005.1,3004.8,0.001]
[1764257644894,0.405504,3005.0,3004.8,0.001]
[1764257645061,4.45325546,3004.9,3004.8,0.001]
[1764257645253,3.41578362,3004.9,3004.8,0.001]
[1764257645449,4.13298716,3004.9,3004.8,0.001]
[1764257646685,4.13239616,3004.9,3004.8,0.001]
[1764257647185,7.46029392,3004.9,3004.8,0.001]
[1764257647866,0.72559411,3004.8,3004.7,0.001]
[1764257648067,0.405504,3004.7,3003.0,0.1973]
[1764257648391,1.35088996,3003.6,3003.1,0.03329892]
[1764257648692,0.31169955,3003.5,3003.1,0.03329892]
[1764257648885,1.35088996,3003.6,3003.2,0.458]
[1764257649089,0.31061922,3003.5,3003.2,0.458]
[1764257649386,4.68033205,3003.6,3003.2,0.458]
[1764257649564,0.31036386,3003.5,3003.2,0.458]
[1764257649770,4.68033205,3003.6,3003.2,0.458]
[1764257649970,0.0992,3003.4,3003.0,0.1973]
[1764257650167,0.0992,3003.4,3003.0,0.6762]
[1764257650389,4.6802913,3003.6,3003.0,0.6762]
[1764257650390,1.35088996,3003.2,3003.0,0.6762]
[1764257650589,1.35088996,3003.2,3002.7,0.4789]
[1764257650777,1.45008996,3003.2,3002.7,0.4789]
[1764257651087,0.31019378,3003.1,3002.7,0.4789]
[1764257651495,1.35088996,3003.4,3003.0,0.4602]
[1764257651797,0.30990756,3003.3,3003.1,0.4602]
[1764257652096,0.30990756,3003.2,3002.8,0.03330225]
[1764257652302,4.68047058,3003.4,3002.8,0.03330225]
[1764257652303,3.32958062,3003.4,3002.8,0.03330225]
[1764257652515,0.30966412,3003.3,3002.9,0.4789]
[1764257652808,0.211,3003.6,3003.3,0.4602]
[1764257653281,0.211,3003.6,3003.1,0.1849]
[1764257653282,0.0992,3003.5,3003.1,0.1849]
[1764257653608,0.4088405,3003.5,3003.1,0.1849]
[1764257653909,0.4088405,3003.5,3003.1,0.6638]
[1764257654476,0.0992,3003.5,3003.1,0.6638]
[1764257654902,0.0992,3003.5,3002.8,3.8091223]
[1764257654903,1.35088996,3003.4,3002.8,3.8091223]
[1764257655212,0.0992,3003.5,3002.8,0.4789]
[1764257655213,1.35088996,3003.2,3002.8,0.4789]
[1764257656410,4.68044979,3003.4,3002.8,3.80907928]
[1764257656580,3.32955983,3003.4,3002.8,3.80907928]
[1764257656775,3.32955983,3003.4,3002.8,0.4789]
[1764257657009,3.32955983,3003.4,3002.8,3.80912083]
[1764257657710,3.32955983,3003.4,3003.0,0.001]
[1764257658608,0.0992,3003.2,3003.0,0.001]
[1764257659909,3.32945329,3003.5,3003.1,1.124]
[1764257660080,0.03166916,3003.4,3003.1,1.124]
[1764257661288,0.03166916,3003.4,3003.3,0.4602]
[1764257661611,3.8073706,3004.4,3003.3,0.4602]
[1764257661612,0.30886841,3003.8,3003.3,0.4602]
[1764257661803,0.24266916,3004.2,3003.5,0.4602]
[1764257662014,3.57136286,3004.2,3003.7,0.4602]
[1764257662213,0.30883135,3004.1,3003.7,0.4602]
[1764257662524,0.30883135,3004.1,3003.7,0.9391]
[1764257663120,0.03166916,3004.0,3003.7,0.4602]
[1764257663503,0.30883135,3004.0,3003.7,0.4602]
[1764257665129,0.30883135,3003.9,3003.7,0.4602]
[1764257665815,0.30883135,3003.9,3003.8,0.4602]
[1764257666014,0.03166916,3004.1,3003.8,0.4602]
[1764257666217,0.30925543,3004.4,3004.0,0.4602]
[1764257666415,0.30925543,3004.4,3003.9,0.4789]
[1764257666416,0.30925543,3004.3,3004.1,0.4602]
[1764257666615,0.211,3004.8,3003.9,0.4789]
[1764257666925,1.06653878,3004.7,3004.4,0.4602]
[1764257667118,0.30927551,3004.6,3004.4,0.4602]
[1764257667421,3.63761633,3004.5,3004.2,0.1849]
[1764257667591,0.30927551,3004.4,3004.2,0.1849]
[1764257667791,0.30944047,3004.3,3004.2,0.1849]
[1764257668118,3.32834082,3004.5,3004.2,0.4602]
[1764257668510,3.42754082,3004.5,3004.2,0.4602]
[1764257671720,3.42754082,3004.5,3004.2,0.9391]
[1764257671721,3.32834082,3004.5,3004.2,0.9391]
[1764257671903,3.35992148,3004.6,3004.2,0.9391]
[1764257672102,6.6881738,3004.6,3004.2,0.9391]
[1764257672296,6.65650464,3004.6,3004.2,0.4602]
[1764257672499,0.03166916,3004.5,3004.2,0.4602]
[1764257673024,0.03166916,3004.5,3004.4,0.4602]
[1764257673591,0.03166916,3004.5,3004.4,0.9391]
[1764257673995,0.24266916,3004.8,3004.4,0.9391]